bitfinex/quotes_SOLUSD_20250415
["timestamp","ask_amount","ask_price","bid_price","bid_amount"]
[1744750641151,0.063,127.52,127.51,108.3360777]
[1744750641452,0.063,127.52,127.51,108.47823927]
[1744750641752,0.063,127.52,127.51,116.32076142]
[1744750641957,0.063,127.52,127.51,250.82076142]
[1744750642529,0.063,127.53,127.52,108.748]
[1744750642735,0.063,127.53,127.52,268.7730777]
[1744750643747,0.063,127.53,127.52,276.61498485]
[1744750644557,0.063,127.53,127.52,276.75714642]
[1744750646244,0.063,127.53,127.52,142.25714642]
[1744750648653,0.063,127.55,127.54,0.14216157]
[1744750648959,0.063,127.55,127.54,25.66723927]
[1744750649159,0.063,127.55,127.54,51.66723927]
[1744750649460,0.063,127.55,127.54,268.85223927]
[1744750649854,0.03,127.57,127.54,268.85223927]
[1744750649855,0.03,127.57,127.56,33.98160967]
[1744750650055,0.03,127.57,127.56,167.71676507]
[1744750650872,0.03,127.57,127.56,108.685]
[1744750651050,0.03,127.57,127.56,134.2100777]
[1744750651870,0.03,127.57,127.56,82.685]
[1744750655748,0.03,127.57,127.56,108.2100777]
[1744750656880,0.03,127.57,127.56,82.685]
[1744750657255,0.03,127.57,127.56,108.2100777]
[1744750661682,0.03,127.57,127.56,82.685]
[1744750662487,0.03,127.57,127.56,108.2100777]
[1744750665283,0.03,127.57,127.56,82.685]
[1744750666377,33.39391128,127.57,127.56,82.685]
[1744750667286,33.39391128,127.57,127.49,82.748]
[1744750667287,18.64964886,127.56,127.49,82.748]
[1744750667497,15.93391229,127.52,127.49,82.748]
[1744750668188,15.93391229,127.5,127.49,82.748]
[1744750668388,23.77704954,127.5,127.49,82.748]
[1744750669067,7.84252215,127.51,127.49,82.748]
[1744750669991,25.50344415,127.52,127.49,82.748]
[1744750669992,33.34557776,127.52,127.49,82.748]
[1744750670584,7.84213361,127.52,127.5,25.50344415]
[1744750670930,7.8394481,127.56,127.51,25.50344415]
[1744750671186,0.03,127.57,127.55,25.50344415]
[1744750671187,7.86913679,127.57,127.55,25.50344415]
[1744750671395,7.86913679,127.57,127.56,25.50344415]
[1744750671396,0.03,127.57,127.56,25.50344415]
[1744750672084,7.86914121,127.57,127.55,82.685]
[1744750672286,7.86914121,127.57,127.55,108.18844415]
[1744750672470,0.03,127.57,127.55,108.18844415]
[1744750672670,0.03,127.57,127.55,82.685]
[1744750676381,0.03,127.57,127.56,25.50344415]
[1744750676583,0.03,127.57,127.55,82.685]
[1744750677591,0.03,127.57,127.55,108.18844415]
[1744750680292,0.03,127.57,127.56,25.50344415]
[1744750680968,0.03,127.57,127.56,58.98849797]
[1744750683192,0.03,127.63,127.56,123.23676708]
[1744750683377,0.03,127.63,127.61,25.50344415]
[1744750685102,7.86514847,127.63,127.62,25.50344415]
[1744750686097,0.03,127.63,127.62,25.50344415]
[1744750688305,0.03,127.63,127.56,18.64964886]
[1744750688606,0.03,127.63,127.6,25.50344415]
[1744750689400,0.03,127.63,127.6,15.90964157]
[1744750691497,0.03,127.63,127.61,15.90964157]
[1744750692696,0.03,127.63,127.62,15.90964157]
[1744750693198,0.03,127.63,127.62,31.96144471]
[1744750693386,0.03,127.63,127.62,57.96144471]
[1744750693796,0.03,127.63,127.62,41.90964157]
[1744750693997,0.03,127.63,127.62,15.90964157]
[1744750698505,0.03,127.63,127.62,49.88756555]
[1744750698800,0.03,127.63,127.62,41.90964157]
[1744750698993,0.03,127.63,127.62,49.74540398]
[1744750699187,0.03,127.63,127.62,65.65504555]
[1744750699501,0.03,127.63,127.62,41.90964157]
[1744750700603,0.03,127.63,127.57,38.24605556]
[1744750700792,0.03,127.63,127.6,41.90964157]
[1744750701606,0.03,127.63,127.6,15.90964157]
[1744750701791,15.93964157,127.63,127.58,15.90964157]
[1744750702108,15.93964157,127.63,127.54,15.90964157]
[1744750702109,15.90964157,127.59,127.54,15.90964157]
[1744750702313,15.90964157,127.58,127.53,15.90964157]
[1744750702515,49.23929043,127.62,127.54,45.90964157]
[1744750702684,15.90964157,127.59,127.54,45.90964157]
[1744750703085,7.83821915,127.58,127.54,15.90964157]
[1744750705510,7.83821915,127.58,127.56,15.90964157]
[1744750706092,7.83699059,127.6,127.57,15.90964157]
[1744750706293,7.83656819,127.61,127.59,15.90964157]
[1744750707517,7.83576241,127.62,127.59,15.90964157]
[1744750708018,23.74540398,127.62,127.57,15.90964157]
[1744750708196,15.90964157,127.6,127.56,15.90964157]
[1744750708515,15.90964157,127.61,127.56,15.90964157]
[1744750708719,15.90964157,127.61,127.57,15.90964157]
[1744750708901,27.42516845,127.62,127.57,15.90964157]
[1744750709212,43.33481002,127.62,127.55,26.0]
[1744750709412,43.33481002,127.62,127.57,15.90964157]
[1744750709612,15.90964157,127.61,127.56,15.90964157]
[1744750710112,43.33481002,127.62,127.57,15.90964157]
[1744750710691,15.90964157,127.61,127.56,15.90964157]
[1744750712014,7.83699059,127.6,127.57,15.90964157]
[1744750713215,7.83637645,127.61,127.57,15.90964157]
[1744750714218,15.90964157,127.61,127.57,15.90964157]
[1744750715994,27.42516845,127.62,127.57,15.90964157]
[1744750716200,27.42516845,127.62,127.58,15.90964157]
[1744750716992,27.42516845,127.62,127.56,7.83927323]
[1744750717215,43.33481002,127.62,127.55,26.0]
[1744750717521,15.90964157,127.61,127.56,15.90964157]
[1744750718523,7.83637645,127.61,127.57,15.90964157]
[1744750719612,43.33695916,127.61,127.56,15.90964157]
[1744750720232,15.90964157,127.59,127.54,15.90964157]
[1744750720702,7.83821915,127.58,127.54,15.90964157]
[1744750721122,7.83821915,127.58,127.55,15.90964157]
[1744750722020,7.83760482,127.59,127.56,15.90964157]
[1744750722404,7.83760482,127.59,127.57,15.90964157]
[1744750722605,7.83729483,127.6,127.58,15.90964157]
[1744750723619,7.83729483,127.6,127.57,15.90964157]
[1744750724315,7.83729483,127.6,127.58,15.90964157]
[1744750725633,7.83729483,127.6,127.57,15.90964157]
[1744750726833,7.83729483,127.6,127.58,15.90964157]
[1744750729734,7.83729483,127.6,127.57,15.90964157]
[1744750730523,7.83729483,127.6,127.58,15.90964157]
[1744750730721,15.90964157,127.59,127.55,26.0]
[1744750730949,23.7469364,127.6,127.55,41.90964157]
[1744750731124,7.83729483,127.6,127.57,15.90964157]
[1744750731442,7.83668942,127.61,127.59,15.90964157]
[1744750731629,7.83668942,127.61,127.58,15.90964157]
[1744750731930,7.83668942,127.61,127.59,15.90964157]
[1744750732318,7.83576241,127.62,127.59,15.90964157]
[1744750732536,7.83576241,127.62,127.56,23.74850597]
[1744750732537,7.83576241,127.62,127.6,15.90964157]
[1744750734022,0.03,127.63,127.61,15.90964157]
[1744750734217,0.03,127.63,127.62,15.90964157]
[1744750735743,0.03,127.63,127.62,39.79720712]
[1744750735954,0.03,127.63,127.62,23.88756555]
[1744750737216,0.03,127.63,127.62,15.90964157]
[1744750738513,0.03,127.63,127.62,39.79720712]
[1744750743057,0.03,127.63,127.62,257.29720712]
[1744750745160,0.03,127.63,127.62,276.35205038]
[1744750748053,0.03,127.63,127.62,227.67482528]
[1744750748735,0.03,127.63,127.62,93.17482528]
[1744750752852,0.03,127.63,127.62,141.85205038]
[1744750754160,0.03,127.64,127.62,160.50169924]
[1744750754343,0.03,127.64,127.63,10.17482528]
[1744750754739,0.03,127.64,127.63,235.50997375]
[1744750755055,0.03,127.64,127.63,235.65213532]
[1744750755259,0.03,127.64,127.63,225.47731004]
[1744750755560,0.03,127.64,127.63,235.65213532]
[1744750760465,0.03,127.64,127.63,101.15213532]
[1744750760866,2.897857,127.65,127.63,145.80178418]
[1744750761081,0.03,127.69,127.68,26.14216157]
[1744750761377,0.03,127.69,127.68,170.81698685]
[1744750762448,0.03,127.69,127.68,211.51628797]
[1744750762763,0.03,127.69,127.68,219.34836817]
[1744750763564,0.063,127.72,127.68,219.34836817]
[1744750763767,0.063,127.72,127.69,10.17482528]
[1744750764571,0.063,127.72,127.69,18.00629211]
[1744750766373,0.063,127.72,127.69,98.25059668]
[1744750767572,0.063,127.72,127.69,90.41912985]
[1744750767873,0.063,127.72,127.69,90.27696828]
[1744750770573,0.063,127.72,127.69,98.10843511]
[1744750771374,0.063,127.72,127.69,90.27696828]
[1744750773950,0.063,127.72,127.69,80.102143]
[1744750774151,0.063,127.72,127.69,90.27696828]
[1744750775185,0.063,127.72,127.69,80.102143]
[1744750775781,10.23782528,127.72,127.69,80.102143]
[1744750776158,0.063,127.72,127.69,90.27696828]
[1744750776980,16.19652528,127.71,127.69,80.102143]
[1744750777286,18.64964886,127.69,127.62,80.102143]
[1744750777452,10.17482528,127.66,127.62,80.102143]
[1744750778787,10.17482528,127.65,127.62,80.102143]
[1744750779363,7.83330722,127.66,127.62,90.27696828]
[1744750779572,7.83330722,127.66,127.63,10.17482528]
[1744750779889,7.83330722,127.66,127.64,10.17482528]
[1744750780187,7.83330722,127.66,127.63,10.17482528]
[1744750780588,7.83330722,127.66,127.62,80.102143]
[1744750780589,7.83330722,127.66,127.62,90.27696828]
[1744750780771,18.0081325,127.66,127.62,90.27696828]
[1744750781193,18.0081325,127.66,127.62,80.102143]
[1744750781567,37.59140055,127.66,127.62,80.102143]
[1744750782391,37.59140055,127.66,127.62,90.27696828]
[1744750784764,37.59140055,127.66,127.62,80.102143]
[1744750786693,10.17482528,127.63,127.62,80.102143]
[1744750786991,36.65962261,127.63,127.62,80.102143]
[1744750787694,36.65962261,127.63,127.58,90.33996828]
[1744750787874,18.00997375,127.63,127.58,90.33996828]
[1744750788082,7.83514847,127.63,127.6,10.17482528]
[1744750788481,7.83514847,127.63,127.59,10.17482528]
[1744750789798,7.83514847,127.63,127.6,10.17482528]
[1744750790878,7.83514847,127.63,127.59,10.17482528]
[1744750791296,36.65962261,127.63,127.58,90.33996828]
[1744750791798,56.2474938,127.63,127.58,90.33996828]
[1744750792093,18.00997375,127.63,127.59,10.17482528]
[1744750792299,7.83514847,127.63,127.6,10.17482528]
[1744750792884,7.83514847,127.63,127.6,90.27696828]
[1744750793388,7.83514847,127.63,127.6,80.102143]
[1744750793592,18.00997375,127.63,127.6,80.102143]
[1744750796982,7.83514847,127.63,127.6,80.102143]
[1744750797306,18.64964886,127.66,127.62,10.17482528]
[1744750797307,7.83330722,127.66,127.62,10.17482528]
[1744750797501,7.83330722,127.66,127.64,10.17482528]
[1744750797701,7.83290656,127.67,127.65,10.17482528]
[1744750798498,7.83290656,127.67,127.64,10.17482528]
[1744750798804,7.83290656,127.67,127.63,10.17482528]
[1744750799302,18.00773184,127.67,127.62,80.102143]
[1744750799488,36.6573807,127.67,127.62,90.27696828]
[1744750799802,0.063,127.7,127.66,10.17482528]
[1744750800001,0.063,127.7,127.69,10.17482528]
[1744750800182,0.063,127.7,127.69,90.27696828]
[1744750800999,0.063,127.7,127.69,80.102143]
[1744750801199,0.063,127.7,127.69,90.27696828]
[1744750801402,0.063,127.7,127.69,80.102143]
[1744750803224,0.063,127.7,127.69,95.98915978]
[1744750803725,0.063,127.7,127.69,80.102143]
[1744750804316,0.063,127.7,127.69,95.98915978]
[1744750806233,0.063,127.7,127.69,80.102143]
[1744750806448,34.59966564,127.7,127.69,80.102143]
[1744750806931,42.4305192,127.7,127.69,80.102143]
[1744750807908,18.71264886,127.7,127.69,80.102143]
[1744750808101,26.54350242,127.7,127.69,80.102143]
[1744750808308,42.4305192,127.7,127.69,80.102143]
[1744750810339,42.4305192,127.7,127.64,95.98915978]
[1744750810529,15.88701678,127.69,127.64,95.98915978]
[1744750810852,42.4305192,127.7,127.66,15.88701678]
[1744750811138,0.063,127.7,127.67,15.88701678]
[1744750811354,0.063,127.7,127.68,15.88701678]
[1744750811718,0.063,127.7,127.67,80.102143]
[1744750811719,15.95001678,127.7,127.67,80.102143]
[1744750812238,0.063,127.7,127.67,80.102143]
[1744750812440,0.063,127.7,127.68,15.88701678]
[1744750812741,0.063,127.7,127.69,15.88701678]
[1744750813247,0.063,127.7,127.69,23.71848361]
[1744750814135,0.063,127.7,127.69,15.88701678]
[1744750814337,0.063,127.7,127.68,95.98915978]
[1744750815745,15.95001678,127.7,127.68,80.102143]
[1744750816434,18.71264886,127.7,127.68,80.102143]
[1744750817253,0.063,127.7,127.68,80.102143]
[1744750817752,0.063,127.7,127.68,95.98915978]
[1744750818951,0.063,127.7,127.68,80.102143]
[1744750822026,0.063,127.7,127.68,95.98915978]
[1744750822428,0.063,127.7,127.69,15.88701678]
[1744750823034,0.063,127.7,127.69,96.13132135]
[1744750823651,0.063,127.7,127.69,103.96278818]
[1744750824547,0.063,127.72,127.71,26.14216157]
[1744750824751,0.063,127.72,127.71,122.13132135]
[1744750826249,0.063,127.72,127.71,129.81940016]
[1744750826542,0.063,127.72,127.71,129.96156173]
[1744750827949,0.063,127.72,127.71,264.46156173]
[1744750828948,0.063,127.72,127.71,268.34010636]
[1744750831848,0.03,127.75,127.74,106.21430457]
[1744750832053,0.03,127.78,127.75,0.14216157]
[1744750832232,0.03,127.78,127.77,15.88701678]
[1744750832429,0.03,127.78,127.77,16.02917835]
[1744750833034,0.03,127.78,127.77,23.8557417]
[1744750833354,0.03,127.78,127.77,15.88701678]
[1744750836756,0.03,127.78,127.77,95.95915978]
[1744750841258,0.03,127.78,127.77,90.22745985]
[1744750842863,0.03,127.78,127.77,80.072143]
[1744750845355,20.29894886,127.77,127.74,134.5]
[1744750845663,10.15531685,127.75,127.74,134.5]
[1744750845843,10.15531685,127.75,127.71,90.22745985]
[1744750846162,7.82840144,127.74,127.71,90.22745985]
[1744750846746,17.98371829,127.74,127.71,80.072143]
[1744750846962,10.15531685,127.73,127.71,80.072143]
[1744750847153,15.88919556,127.73,127.71,80.072143]
[1744750847461,7.82840144,127.74,127.71,80.072143]
[1744750847462,15.88919556,127.72,127.71,80.072143]
[1744750847777,15.88919556,127.72,127.69,0.063]
[1744750847778,18.64964886,127.71,127.69,0.063]
[1744750847945,43.91149798,127.7,127.69,0.063]
[1744750848847,25.26184912,127.7,127.69,0.063]
[1744750849062,43.91149798,127.7,127.69,0.063]
[1744750854264,7.83085356,127.7,127.69,0.063]
[1744750854455,7.83049327,127.71,127.69,0.063]
[1744750855248,42.36933769,127.71,127.69,0.063]
[1744750855453,34.53884442,127.7,127.69,0.063]
[1744750856468,42.36969798,127.7,127.69,0.063]
[1744750856781,42.36969798,127.7,127.69,1e-08]
[1744750857080,48.73239798,127.7,127.69,1e-08]
[1744750858477,32.84320242,127.7,127.69,1e-08]
[1744750858693,48.73239798,127.7,127.69,1e-08]
[1744750861097,7.83085356,127.7,127.69,1e-08]
[1744750861405,12.44,127.74,127.69,95.96133857]
[1744750861582,20.26869525,127.74,127.71,15.88919556]
[1744750861778,7.82805378,127.75,127.71,95.96133856]
[1744750862275,7.82805378,127.75,127.72,15.88919556]
[1744750862479,7.82805378,127.75,127.71,95.96133856]
[1744750863611,7.82805378,127.75,127.72,15.88919556]
[1744750864604,61.93396025,127.76,127.71,80.072143]
[1744750864811,15.88919556,127.75,127.71,80.072143]
[1744750865008,27.39511583,127.76,127.71,95.96133856]
[1744750865183,23.71637151,127.76,127.71,95.96133856]
[1744750865389,26.47682481,127.76,127.72,15.88919556]
[1744750866321,42.36602037,127.76,127.71,95.96133856]
[1744750866614,42.36602037,127.76,127.72,15.88919556]
[1744750867724,15.88919556,127.75,127.71,95.96133856]
[1744750868524,61.93396025,127.76,127.71,95.96133856]
[1744750869020,61.93396025,127.76,127.71,80.072143]
[1744750869224,15.88919556,127.75,127.71,95.96133856]
[1744750870336,23.717597,127.74,127.71,80.072143]
[1744750870500,15.88919556,127.73,127.71,80.072143]
[1744750870996,23.717597,127.74,127.71,80.072143]
[1744750871217,7.82840144,127.74,127.71,80.072143]
[1744750871416,23.717597,127.74,127.71,80.072143]
[1744750875520,7.82840144,127.74,127.71,95.96133856]
[1744750875825,7.82717595,127.76,127.73,15.88919556]
[1744750875996,0.03,127.78,127.75,15.88919556]
[1744750876311,0.03,127.78,127.76,15.88919556]
[1744750876622,0.03,127.78,127.77,15.88919556]
[1744750877005,0.03,127.78,127.76,15.88919556]
[1744750878526,0.03,127.78,127.75,80.072143]
[1744750878819,0.03,127.78,127.75,95.96133856]
[1744750879204,0.03,127.78,127.77,15.88919556]
[1744750879524,0.03,127.78,127.76,15.88919556]
[1744750880807,0.03,127.78,127.76,95.96133856]
[1744750882128,15.91919556,127.81,127.76,95.96133856]
[1744750883533,7.82472613,127.8,127.76,95.96133856]
[1744750884811,7.82472613,127.8,127.77,15.88919556]
[1744750886127,0.03,127.81,127.79,15.88919556]
[1744750886430,0.03,127.81,127.8,15.88919556]
[1744750890835,0.03,127.81,127.79,15.88919556]
[1744750893641,0.03,127.81,127.8,15.88919556]
[1744750895618,0.03,127.81,127.8,39.74527882]
[1744750895818,0.03,127.81,127.8,65.74527882]
[1744750898825,0.03,127.84,127.81,0.14216157]
[1744750899018,0.03,127.84,127.83,16.03135713]
[1744750899421,0.03,127.84,127.83,42.03135713]
[1744750900051,0.03,127.87,127.83,42.03135713]
[1744750900052,0.03,127.87,127.86,26.14216157]
[1744750900241,0.03,127.87,127.86,57.92055269]
[1744750900751,0.03,127.87,127.86,65.74160696]
[1744750901255,0.03,127.88,127.86,65.74160696]
[1744750901463,0.03,127.88,127.87,40.73580599]
[1744750901629,0.03,127.88,127.87,42.33490599]
[1744750902247,1.06387005,127.9,127.89,44.79181043]
[1744750902425,0.03,127.97,127.9,18.79181043]
[1744750902627,0.03,127.97,127.95,15.88919556]
[1744750902934,0.03,127.97,127.94,15.88919556]
[1744750903354,15.91919556,127.97,127.91,33.81788533]
[1744750903542,15.88919556,127.96,127.92,15.88919556]
[1744750903739,15.88919556,127.96,127.91,41.88919556]
[1744750903943,15.88919556,127.95,127.91,41.88919556]
[1744750904649,15.88919556,127.95,127.91,26.0]
[1744750904960,7.81616382,127.94,127.91,41.88919556]
[1744750905922,7.81616382,127.94,127.92,15.88919556]
[1744750906730,7.81616382,127.94,127.87,15.47395081]
[1744750906937,7.81616382,127.94,127.89,15.88919556]
[1744750906938,15.88919556,127.94,127.89,15.88919556]
[1744750907133,27.35443532,127.95,127.9,15.88919556]
[1744750907355,15.88919556,127.94,127.9,15.88919556]
[1744750907533,7.81555295,127.95,127.91,15.88919556]
[1744750907732,7.81555295,127.95,127.92,15.88919556]
[1744750907926,7.81555295,127.95,127.93,15.88919556]
[1744750908153,7.81516493,127.96,127.93,15.88919556]
[1744750908742,7.84433148,127.97,127.93,15.88919556]
[1744750908939,7.84433148,127.97,127.94,15.88919556]
[1744750909136,0.03,127.97,127.94,15.88919556]
[1744750909339,0.03,127.97,127.95,15.88919556]
[1744750909651,0.03,127.97,127.96,15.88919556]
[1744750909844,0.03,127.97,127.96,16.03135713]
[1744750910041,7.81035656,128.04,127.97,0.14216157]
[1744750910245,7.81035656,128.04,128.01,15.88919556]
[1744750910540,7.81035656,128.04,128.0,15.88919556]
[1744750911336,7.81035656,128.04,127.99,26.0]
[1744750911528,7.80971495,128.05,128.01,15.88919556]
[1744750911734,7.80971495,128.05,128.02,15.88919556]
[1744750912246,15.88919556,128.04,127.99,41.88919556]
[1744750912443,15.88919556,128.01,127.97,41.88919556]
[1744750912635,18.64964886,128.04,127.99,15.88919556]
[1744750912954,7.81127948,128.02,127.99,15.88919556]
[1744750913753,7.81127948,128.02,127.96,41.88919556]
[1744750913951,7.80953206,128.05,127.99,26.0]
[1744750914134,7.80953206,128.05,127.97,18.64964886]
[1744750914135,18.64964886,128.04,127.97,26.0]
[1744750914330,7.80953206,128.05,128.01,15.88919556]
[1744750914537,7.80953206,128.05,127.98,16.03135713]
[1744750914841,7.80953206,128.05,128.02,15.88919556]
[1744750915141,7.8088396,128.06,128.02,15.88919556]
[1744750915341,14.23466297,128.07,128.03,15.88919556]
[1744750915560,21.80898113,128.08,128.05,15.88919556]
[1744750915742,12.4,128.08,128.05,15.88919556]
[1744750916135,266.26359556,128.1,128.06,0.14216157]
[1744750916136,0.03,128.1,128.06,0.14216157]
[1744750916331,15.88919556,128.09,128.04,15.88919556]
[1744750916537,7.83650096,128.1,128.05,15.88919556]
[1744750916846,15.88919556,128.09,128.05,15.88919556]
[1744750917043,23.69674984,128.09,128.04,41.88919556]
[1744750917356,23.69674984,128.09,128.05,15.88919556]
[1744750917574,7.83675109,128.1,128.06,15.88919556]
[1744750917756,7.83675109,128.1,128.04,33.95218225]
[1744750917757,7.83675109,128.1,128.07,15.88919556]
[1744750917956,0.03,128.1,128.07,15.88919556]
[1744750918151,0.03,128.1,128.08,15.88919556]
[1744750918956,0.03,128.1,128.05,0.14216157]
[1744750919260,0.03,128.1,128.08,15.88919556]
[1744750919454,0.03,128.1,128.09,15.88919556]
[1744750919661,0.03,128.1,128.08,15.88919556]
[1744750920366,0.03,128.1,128.06,15.88919556]
[1744750920541,0.03,128.1,128.07,15.88919556]
[1744750920742,0.03,128.1,128.09,15.88919556]
[1744750921056,0.03,128.1,128.08,15.88919556]
[1744750921463,0.03,128.1,128.09,15.88919556]
[1744750921647,0.03,128.1,128.06,0.14216157]
[1744750921844,0.03,128.1,128.08,15.88919556]
[1744750922362,0.03,128.1,128.06,0.14216157]
[1744750922363,15.91919556,128.1,128.05,16.03135713]
[1744750922545,0.03,128.1,128.06,15.88919556]
[1744750922866,0.03,128.1,128.07,15.88919556]
[1744750923369,7.83640124,128.1,128.07,15.88919556]
[1744750924764,0.03,128.1,128.07,15.88919556]
[1744750926372,51.26634886,128.1,128.01,12.38]
[1744750926554,15.88919556,128.03,127.97,1.6135]
[1744750926759,26.0,128.07,127.97,15.88919556]
[1744750926760,23.70047504,128.02,127.97,15.88919556]
[1744750927051,15.88919556,128.01,127.96,15.88919556]
[1744750927551,27.33947819,128.02,127.96,15.88919556]
[1744750927746,15.88919556,128.0,127.96,15.88919556]
[1744750928146,43.22867375,128.02,127.97,15.88919556]
[1744750929268,43.22867375,128.02,127.96,0.14216157]
[1744750929269,25.30945667,128.01,127.96,0.14216157]
[1744750929451,25.30945667,128.0,127.95,25.30945667]
[1744750929653,25.30945667,127.99,127.92,26.58077496]
[1744750929852,25.30945667,127.98,127.93,25.30945667]
[1744750930851,7.81433148,127.97,127.93,25.30945667]
[1744750931052,7.81433148,127.97,127.93,0.14216157]
[1744750931253,7.81433148,127.97,127.93,25.45161824]
[1744750931768,7.81372089,127.98,127.95,25.30945667]
[1744750932268,7.81372089,127.98,127.94,25.30945667]
[1744750933074,12.38,127.99,127.95,25.30945667]
[1744750933370,20.19324998,127.99,127.96,25.30945667]
[1744750933664,20.19324998,127.99,127.95,25.30945667]
[1744750934461,45.50270665,127.99,127.94,25.45161824]
[1744750936772,20.19324998,127.99,127.95,25.30945667]
[1744750937154,25.30945667,127.98,127.92,26.0]
[1744750937355,25.30945667,127.98,127.93,25.30945667]
[1744750937555,25.30945667,127.97,127.92,51.30945667]
[1744750938173,25.30945667,127.95,127.9,51.30945667]
[1744750938563,25.30945667,127.95,127.91,25.30945667]
[1744750938761,25.30945667,127.96,127.91,25.30945667]
[1744750938964,25.30945667,127.96,127.9,26.0]
[1744750939180,7.81555295,127.95,127.91,25.30945667]
[1744750939363,33.12500962,127.95,127.9,26.0]
[1744750939561,33.12500962,127.95,127.9,51.30945667]
[1744750939871,52.66389199,127.95,127.9,51.30945667]
[1744750941166,7.81555295,127.95,127.91,25.30945667]
[1744750941665,7.81555295,127.95,127.9,59.12798079]
[1744750941666,33.12500962,127.95,127.9,59.12798079]
[1744750942176,33.12500962,127.95,127.9,51.30945667]
[1744750942678,25.30945667,127.93,127.88,51.30945667]
[1744750943251,25.30945667,127.92,127.87,25.37245667]
[1744750943863,31.90855667,127.92,127.87,0.063]
[1744750944063,31.90855667,127.92,127.87,25.37245667]
[1744750945882,7.81799702,127.91,127.88,25.30945667]
[1744750946074,7.81677479,127.93,127.9,25.30945667]
[1744750946579,25.30945667,127.92,127.88,25.30945667]
[1744750946760,25.30945667,127.92,127.87,25.37245667]
[1744750947876,25.30945667,127.9,127.87,0.063]
[1744750948077,7.81921964,127.89,127.87,0.063]
[1744750948585,7.81921964,127.89,127.87,25.37245667]
[1744750948878,25.30945667,127.92,127.88,25.30945667]
[1744750949268,25.30945667,127.92,127.87,83.063]
[1744750949269,7.81820617,127.91,127.87,108.37245667]
[1744750949467,33.12766284,127.91,127.87,83.063]
[1744750949668,33.12766284,127.91,127.87,108.37245667]
[1744750950274,33.12766284,127.91,127.88,25.30945667]
[1744750950275,7.81820617,127.91,127.88,25.30945667]
[1744750951375,20.19555295,127.95,127.9,15.8397707]
[1744750951575,20.19555295,127.95,127.92,15.8397707]
[1744750951877,18.64964886,127.92,127.9,83.0]
[1744750952179,15.8397707,127.91,127.87,0.063]
[1744750952388,15.8397707,127.89,127.87,0.063]
[1744750952576,15.8397707,127.88,127.87,0.063]
[1744750954385,23.65960179,127.88,127.87,0.063]
[1744750954690,42.30925065,127.88,127.87,0.063]
[1744750954983,42.30925065,127.88,127.84,83.063]
[1744750954984,18.64964886,127.87,127.84,83.063]
[1744750955163,34.48941956,127.85,127.84,0.063]
[1744750955363,46.86941956,127.85,127.84,0.063]
[1744750956465,36.04143671,127.85,127.84,0.063]
[1744750959083,20.20166601,127.85,127.84,0.063]
[1744750959284,36.04143671,127.85,127.84,0.063]
[1744750959987,20.20166601,127.85,127.84,0.063]
[1744750961590,36.04143671,127.85,127.84,0.063]
[1744750963873,54.69108557,127.85,127.84,0.063]
[1744750964263,20.20166601,127.85,127.84,0.063]
[1744750964762,36.04143671,127.85,127.84,0.063]
[1744750965686,54.69108557,127.85,127.84,0.063]
[1744750965867,38.85131487,127.85,127.84,0.063]
[1744750966068,20.20166601,127.85,127.84,0.063]
[1744750966488,36.04143671,127.85,127.84,0.063]
[1744750967789,20.20166601,127.85,127.84,0.063]
[1744750968499,12.38,127.89,127.84,15.9027707]
[1744750968673,28.2197707,127.89,127.85,15.8397707]
[1744750969169,20.19921964,127.89,127.86,15.8397707]
[1744750969377,11.88,127.89,127.86,15.8397707]
[1744750969876,19.6995208,127.89,127.86,15.8397707]
[1744750970069,45.88464172,127.92,127.88,15.8397707]
[1744750970070,7.81738586,127.92,127.88,15.8397707]
[1744750970275,12.38,127.93,127.89,15.8397707]
[1744750970595,20.19702872,127.93,127.9,15.8397707]
[1744750971170,20.19702872,127.93,127.91,15.8397707]
[1744750972296,55.02099309,127.97,127.92,15.8397707]
[1744750972469,20.19462391,127.97,127.94,15.8397707]
[1744750972670,20.19462391,127.97,127.92,83.0]
[1744750972671,20.19462391,127.97,127.93,15.8397707]
[1744750973696,20.19462391,127.97,127.94,15.8397707]
[1744750975270,12.38,127.97,127.95,15.8397707]
[1744750975476,7.8125,128.0,127.96,15.8397707]
[1744750975976,23.6522707,128.0,127.95,98.8397707]